Cogmind - Beta 13 @@@ ROGUE MODE // 2024.04.21 @ 22:12:44 Player: Haddoc Result: Destroyed by G-47 Trooper with Particle Gun Performance ------------- Evolutions (0) 0 Regions Visited (4) 800 Robots Destroyed (24) 120 Value Destroyed (494) 494 Prototype IDs (4) 80 Alien Tech Used (0) 0 Bonus (300) 300 TOTAL SCORE: 1794 Bonus ------- Aligned with FarCom 300 Cogmind --------- Core Integrity 0/250 Matter 227/300 Energy 100/100 System Corruption 1% Temperature Cool (10) Movement Flying (120) Ox1 Location -9/Mines Parts ------- > --- POWER (1) -------- (None) > --- PROPULSION (2) --- Flight Unit > --- UTILITY (2) ------ Trap Reconfigurator > --- WEAPON (2) ------- Rocket Launcher > --- INVENTORY (5) ---- Improved Heat Sink Sensor Array Targeting Computer ECM Suite EM Pulse Gun Peak State ------------ > --- POWER ------------ Light Ion Engine > --- PROPULSION ------- Light Treads Light Treads > --- UTILITY ---------- Large Storage Unit Trap Reconfigurator > --- WEAPON ----------- Shotgun Rocket Launcher > --- INVENTORY -------- Flight Unit Flight Unit Heat Sink Improved Heat Sink Sensor Array Targeting Computer ECM Suite ECM Suite EM Pulse Gun Assault Rifle Assault Rifle Light Assault Rifle Shotgun [Rating: 18] Favorites ----------- Power Light Ion Engine Engine Light Ion Engine Propulsion Light Treads Treads Light Treads Flight Unit Flight Unit Utility Signal Interpreter Device Trap Reconfigurator Storage Large Storage Unit Processor Signal Interpreter Weapon Assault Rifle Ballistic Gun Assault Rifle Ballistic Cannon Light Cannon Launcher Rocket Launcher Special Weapon Mining Laser Build | -11 -10 -10 -10 -9 ------- Run | Yrd Mat Min Exi Min Slots Evolved . | . . . . . Power . | . . . . . Propulsion . | . . . . . Utility . | . . . . . Weapon . | . . . . . Parts Attached 28 | 5 14 4 5 . Power 4 | 1 2 1 . . Engine 4 | 1 2 1 . . Core . | . . . . . Reactor . | . . . . . Propulsion 5 | 2 1 . 2 . Treads 3 | 2 1 . . . Leg . | . . . . . Wheel . | . . . . . Hover . | . . . . . Flight 2 | . . . 2 . Utility 11 | 1 7 . 3 . Device 2 | . . . 2 . Storage 8 | 1 6 . 1 . Processor 1 | . 1 . . . Hackware . | . . . . . Protection . | . . . . . Artifact . | . . . . . Weapon 8 | 1 4 3 . . Energy Gun . | . . . . . Energy Cannon . | . . . . . Ballistic Gun 5 | 1 3 1 . . Ballistic Cannon 1 | . 1 . . . Launcher 1 | . . 1 . . Special Weapon 1 | . . 1 . . Impact Weapon . | . . . . . Slashing Weapon . | . . . . . Piercing Weapon . | . . . . . Special Melee Weapon . | . . . . . Unidentified Prototypes 2 | . . . 2 . Parts Lost 4 | . . 2 . 2 Power 2 | . . 1 . 1 Propulsion 1 | . . . . 1 Utility . | . . . . . Weapon 1 | . . 1 . . Highest Loss Streak 2 | . . 2 . 2 To Critical Strikes . | . . . . . Average Slot Usage (%) 96 | . 93 99 99 61 Engine 13 | . 14 13 14 4 Treads 27 | . 27 28 26 . Device 2 | . . . 9 14 Storage 13 | . 14 14 14 . Processor 9 | . 10 14 4 . Ballistic Gun 18 | . 19 24 14 4 Ballistic Cannon 3 | . 6 . . . Launcher 4 | . . . 14 14 Naked Turns . | . . . . . Heaviest Build 88 | 10 88 30 31 11 Greatest Support 40 | 40 40 40 40 8 Greatest Overweight (x) 2 | . 2 . 1 1 Average Overweight (x) . | . . . . . Largest Inventory Capacity 25 | 8 25 15 15 5 Average Capacity 13 | 7 13 15 14 5 Most Carried 15 | 4 15 15 15 5 Average Carried 11 | 2 9 14 13 5 Final Capacity 15 | 8 15 15 8 5 Final Carried 15 | 2 15 15 5 5 Class Distribution -------------------- 100% | Mutant Dominant Class ---------------- Mutant | -10/Materials Mutant | -10/Mines Mutant | -10/Exiles Mutant | -9/Mines Resources | -11 -10 -10 -10 -9 ----------- Run | Yrd Mat Min Exi Min Matter Collected 826 | 222 513 91 . . Remotely . | . . . . . Salvage Created 497 | . 391 106 . . Parts 45 | . 36 9 . . Haulers Intercepted . | . . . . . Recyclers Shooed 1 | . 1 . . . Parts Field Recycled . | . . . . . Retrieved Matter . | . . . . . Parts Self-Destructed . | . . . . . Prevented . | . . . . . Kills | -11 -10 -10 -10 -9 ------- Run | Yrd Mat Min Exi Min Combat Hostiles Destroyed 19 | . 14 5 . . Guns 14 | . 9 5 . . Cannons 5 | . 5 . . . Classes Destroyed 5 | . 5 . . . Worker 1 | . 1 . . . Operator 1 | . 1 . . . Watcher 3 | . 3 . . . Swarmer 10 | . 7 3 . . Grunt 9 | . 7 2 . . Best Kill Streak 5 | . 5 3 . . Combat Bots Only 5 | . 5 3 . . Max Kills in Single Turn 1 | . 1 1 . . Gunslinging . | . . . . . Exploded . | . . . . . Melee . | . . . . . Uniques/NPCs Destroyed . | . . . . . Combat | -11 -10 -10 -10 -9 -------- Run | Yrd Mat Min Exi Min Hostile Shots Fired 160 | . 95 31 . 34 Missed 50 | . 28 10 . 12 Damage Taken 1114 | . 591 240 . 283 Core 258 | . 120 50 . 88 Absorbed by Shields . | . . . . . Regen/Repaired (Parts) 77 | . 77 . . . Core Remaining (%) 100 | 100 . . . . Volleys Fired 73 | . 55 18 . . Largest 2 | . 2 2 . . Hottest 55 | . 55 43 . . Shots Fired 130 | . 103 27 . . Gun 94 | . 67 27 . . Cannon 36 | . 36 . . . Launcher . | . . . . . Special . | . . . . . Kinetic 130 | . 103 27 . . Thermal . | . . . . . Explosive . | . . . . . Electromagnetic . | . . . . . Robot Hit Streak 10 | . 10 5 . . Robot Miss Streak 6 | . 6 2 . . Penetration Max . | . . . . . Secondary Targets 2 | . 2 . . . Max Gunslinging Chain 1 | . 1 . . . Shots Hit Robots 75 | . 57 18 . . Core Hits 38 | . 26 12 . . Critical Kills . | . . . . . Critical Parts Destroyed . | . . . . . Critical Strikes . | . . . . . Melee Attacks . | . . . . . Impact . | . . . . . Slashing . | . . . . . Piercing . | . . . . . Sneak Attacks . | . . . . . Combat Hostiles . | . . . . . Follow-up Attacks . | . . . . . Damage Inflicted 1040 | . 835 205 . . Guns 728 | . 523 205 . . Cannons 312 | . 312 . . . Explosions . | . . . . . Melee . | . . . . . Ramming . | . . . . . Kinetic 1040 | . 835 205 . . Thermal . | . . . . . Explosive . | . . . . . Electromagnetic . | . . . . . Impact . | . . . . . Slashing . | . . . . . Piercing . | . . . . . Highest Corruption 1 | . 1 1 1 1 Average Corruption 1 | . 1 1 1 1 Corruption Purged . | . . . . . Corruption Blocked . | . . . . . Effects 12 | . . 7 5 . Message Errors 1 | . . 1 . . Matter Fused 6 | . . 3 3 . Heat Flow Errors 1 | . . . 1 . Energy Discharges 2 | . . 2 . . Data Loss (minor) 2 | . . 1 1 . Overload Shots . | . . . . . Overflow Damage 4 | . 4 . . . Projectiles 4 | . 4 . . . Explosions . | . . . . . Melee . | . . . . . Knockbacks 2 | . 2 . . . Impact . | . . . . . Kinetic 2 | . 2 . . . Secondary . | . . . . . Self-Inflicted Damage . | . . . . . Shots . | . . . . . Rammed . | . . . . . Targets Rammed . | . . . . . Kicked . | . . . . . Crushed . | . . . . . Highest Temperature 109 | . 10 6 109 . Average Temperature 10 | . 4 2 62 . Received Heat Transfer 351 | . 126 90 . 135 Siege Activations . | . . . . . Robots Corrupted . | . . . . . Combat Hostiles . | . . . . . Parts Fried . | . . . . . Impact Corruptions . | . . . . . Robots Melted . | . . . . . Combat Hostiles . | . . . . . Parts Melted . | . . . . . Heat Transferred . | . . . . . Parts Sabotaged . | . . . . . Parts Stolen . | . . . . . Parts Stripped . | . . . . . Power Chain Reactions . | . . . . . Alert | -11 -10 -10 -10 -9 ------- Run | Yrd Mat Min Exi Min Peak Influence 194 | . 194 110 . . Initial 9 | . . 9 . . Average 38 | . 45 25 . . Maximum Alert Level . | . . . . . Low Security (%) 100 | 100 100 100 . 100 Level 1 . | . . . . . Level 2 . | . . . . . Level 3 . | . . . . . Level 4 . | . . . . . Level 5 . | . . . . . High Security . | . . . . . Max Security . | . . . . . Squads Dispatched 4 | . 4 . . . Investigation 3 | . 3 . . . Extermination . | . . . . . Reinforcement 1 | . 1 . . . Assault . | . . . . . Garrison . | . . . . . Intercept . | . . . . . Searches Triggered . | . . . . . Construction Impeded . | . . . . . Haulers Reinforced . | . . . . . Active Scanning Responses . | . . . . . Cargo Convoy Interrupts . | . . . . . Stealth | -11 -10 -10 -10 -9 --------- Run | Yrd Mat Min Exi Min Distress Signals 3 | . 2 1 . . Communications Jammed . | . . . . . Distress Signals . | . . . . . Times Spotted 35 | . 25 5 . 5 Peak Tracking Total 5 | . 5 3 . 5 Tactical Retreats 1 | . 1 . . . Traps | -11 -10 -10 -10 -9 ------- Run | Yrd Mat Min Exi Min Traps Triggered 4 | . 4 . . . Indirectly . | . . . . . Trap Hack Attempts . | . . . . . Triggered . | . . . . . Disarmed . | . . . . . Reprogrammed . | . . . . . Reused . | . . . . . Traps Extracted . | . . . . . Installed . | . . . . . Triggered . | . . . . . Machines | -11 -10 -10 -10 -9 ---------- Run | Yrd Mat Min Exi Min Machines Disabled 1 | . 1 . . . Max in Single Turn 1 | . 1 . . . Machines Repaired . | . . . . . Machines Dismantled . | . . . . . Machines Sabotaged . | . . . . . Overloaded Fab Kills . | . . . . . Hacking | -11 -10 -10 -10 -9 --------- Run | Yrd Mat Min Exi Min Machines Accessed 10 | . 6 . 4 . Terminals 5 | . 5 . . . Fabricators . | . . . . . Repair Stations 1 | . 1 . . . Recycling Units . | . . . . . Scanalyzers . | . . . . . Garrison Access . | . . . . . Total Hacks 66 | . 17 . 49 . Successful 58 | . 9 . 49 . Failed 8 | . 8 . . . Catastrophic . | . . . . . Database Lockouts . | . . . . . Manual 13 | . 12 . 1 . Terminals 15 | . 15 . . . Fabricators . | . . . . . Repair Stations 2 | . 2 . . . Recycling Units . | . . . . . Scanalyzers . | . . . . . Garrison Access . | . . . . . Terminal Hacks 56 | . 7 . 49 . Record 49 | . . . 49 . Part Schematic 2 | . 2 . . . Prototype ID Bank 1 | . 1 . . . Alert Level 2 | . 2 . . . Dispatch Records 1 | . 1 . . . Zone Layout 1 | . 1 . . . Fabricator Hacks . | . . . . . Repair Station Hacks 2 | . 2 . . . Scan Component 1 | . 1 . . . Repair 1 | . 1 . . . Recycling Unit Hacks . | . . . . . Scanalyzer . | . . . . . Garrison Access Hacks . | . . . . . Unauthorized Hacks . | . . . . . Terminals . | . . . . . Fabricators . | . . . . . Repair Stations . | . . . . . Recycling Units . | . . . . . Scanalyzers . | . . . . . Garrison Access . | . . . . . Data Cores Recovered . | . . . . . Used . | . . . . . Hacking Detections 5 | . 5 . . . Full Trace Events 1 | . 1 . . . Feedback Events . | . . . . . Feedback Blocked . | . . . . . Robot Schematics Acquired . | . . . . . Robots Built . | . . . . . Authchips . | . . . . . Time . | . . . . . Total Robot Build Rating . | . . . . . Part Schematics Acquired 2 | . 2 . . . Parts Built . | . . . . . Authchips . | . . . . . Time . | . . . . . Total Part Build Rating . | . . . . . Parts Repaired 1 | . 1 . . . Time 26 | . 26 . . . Parts Recycled . | . . . . . Recycled Matter . | . . . . . Retrieved Matter . | . . . . . Retrieved Components . | . . . . . Parts Scanalyzed . | . . . . . Part Schematics Acquired . | . . . . . Parts Damaged . | . . . . . Bothacking | -11 -10 -10 -10 -9 ------------ Run | Yrd Mat Min Exi Min Used RIF Installer . | . . . . . Robots Hacked . | . . . . . Non-combat . | . . . . . Combat . | . . . . . Robot Hacks Applied . | . . . . . Relay Couplers Released . | . . . . . Fabnet Peak Effective % . | . . . . . Robots Rewired . | . . . . . Allies Hacked . | . . . . . Hacks Repelled . | . . . . . Allies | -11 -10 -10 -10 -9 -------- Run | Yrd Mat Min Exi Min Total Allies . | . . . . . Largest Group . | . . . . . Highest-Rated Group . | . . . . . Highest-Rated Ally . | . . . . . Total Orders . | . . . . . Ally Attacks . | . . . . . Total Damage . | . . . . . Kills . | . . . . . Allies Corrupted . | . . . . . Allies Melted . | . . . . . Intel | -11 -10 -10 -10 -9 ------- Run | Yrd Mat Min Exi Min Robot Analysis Total . | . . . . . Derelict Logs Recovered 1 | . . 1 . . Drone Launches . | . . . . . Drone Recoveries . | . . . . . Exploration | -11 -10 -10 -10 -9 ------------- Run | Yrd Mat Min Exi Min Turns Passed 2695 | 52 1338 572 705 28 Spaces Moved 1458 | 32 622 317 440 47 Core 9 | 9 . . . . Treads 1368 | 23 622 317 406 . Legs . | . . . . . Wheels . | . . . . . Hover . | . . . . . Flight 81 | . . . 34 47 Fastest Speed 37 | 50 160 160 117 37 Average Speed 162 | 129 177 160 156 58 Slowest Speed 320 | 160 320 160 160 120 Overloaded Moves . | . . . . . Propulsion Burnouts . | . . . . . Robots Hopped . | . . . . . Cave-ins Triggered . | . . . . . Exploration Rate (%) 50 | 4 91 54 89 15 Regions Visited 4 Branch Regions 3 Pre-discovered Areas 1 | . . . 1 . Known Exits Taken 2 | . 1 1 . . Unknown Exits Taken 2 | 1 . . 1 . Scrap Searched . | . . . . . Spaces Dug . | . . . . . Terrain Destroyed . | . . . . . Melee . | . . . . . Projectile . | . . . . . AOE . | . . . . . Terrain Rammed . | . . . . . Walls Destroyed . | . . . . . Machines Disabled . | . . . . . Actions | -11 -10 -10 -10 -9 --------- Run | Yrd Mat Min Exi Min Total 1666 | 43 757 359 458 49 Wait 46 | . 31 15 . . Move 1454 | 31 621 316 439 47 Hop . | . . . . . Pick Up 40 | 7 25 4 4 . Fast Attach . | . . . . . Attach 19 | 5 10 2 2 . Detach 2 | . 2 . . . Swap 9 | . 4 2 3 . Drop 22 | . 9 2 9 2 Fire 73 | . 55 18 . . Melee . | . . . . . Ram . | . . . . . Kick . | . . . . . Crush . | . . . . . Escape Stasis . | . . . . . Rewire 1 | . . . 1 . Trap . | . . . . . Miscellaneous . | . . . . . Route ------- -11/Scrapyard -10/Materials (discovered 5 exits: *Mat x3 / *Min x2) -10/Mines (discovered 3 exits: *Mat x2 / *Exi) -10/Exiles -9/Mines History --------- Turn | Location | Event 25 | -11/Scrapyard | Discovered new exit (range 16) 53 | -11/Scrapyard | Entered Materials 174 | -10/Materials | Discovered new exit (range 6) 300 | -10/Materials | Build established: Mutant 432 | -10/Materials | Discovered new exit (range 14) 615 | -10/Materials | Discovered new exit (range 16) 638 | -10/Materials | Identified exit to Materials 819 | -10/Materials | Discovered new exit (range 12) 1134 | -10/Materials | Repaired Lgt. Treads 1259 | -10/Materials | Discovered exit to Materials (range 16) 1390 | -10/Materials | Identified exit to Mines 1391 | -10/Materials | Entered Mines 1396 | -10/Mines | Learned Materials stockpile data 1450 | -10/Mines | Received a Rocket Launcher from a helpful Derelict 1461 | -10/Mines | Met a Derelict bent on vengeance 1553 | -10/Mines | Core integrity fell below 50% 1599 | -10/Mines | Discovered exit to Materials (range 13) 1719 | -10/Mines | Discovered exit to Materials (range 11) 1902 | -10/Mines | Assembled infested the area 1957 | -10/Mines | Discovered new exit (range 5) 1962 | -10/Mines | Identified exit to Exiles 1963 | -10/Mines | Entered Exiles 2000 | -10/Exiles | Met 8R-AWN 2031 | -10/Exiles | Met EX-HEX 2081 | -10/Exiles | Met EX-BIN 2107 | -10/Exiles | Aligned with FarCom system 2108 | -10/Exiles | Given EX-Vault access code 2185 | -10/Exiles | Opened EX-Vault 2196 | -10/Exiles | Found Prototype Device 2197 | -10/Exiles | Identified Skeleton Box 2207 | -10/Exiles | Found Prototype Device 2208 | -10/Exiles | Identified Trap Reconfigurator 2242 | -10/Exiles | Warned to stay clear of 0b10 Research branches 2289 | -10/Exiles | Met EX-DEC 2347 | -10/Exiles | Visited The Gauntlet 2553 | -10/Exiles | Learned location of Zion (-7) 2655 | -10/Exiles | Discovered new exit (range 14) 2668 | -10/Exiles | Left Exiles lab with Trap Reconfigurator 2668 | -10/Exiles | Entered Mines 2689 | -9/Mines | Core integrity fell below 20% 2696 | -9/Mines | Destroyed by G-47 Trooper with Particle Gun Last Messages --------------- again?! I'm not erasing this message until I get an answer. --BIN 02592_ System corrupted: Component data lost. 02618_ Acquired Sml. Storage Unit. 02624_ Dropped Lgt. Treads. 02625_ Dropped Heat Sink. 02626_ System corrupted: Matter fused (-10). 02626_ Dropped Imp. Heat Sink. 02626_ Dropped Lgt. Assault Rifle. 02627_ Dropped Lrg. Storage Unit. 02632_ Acquired Imp. Heat Sink. 02655_ EXIT=FOUND LOCATION=UNKNOWN GOAL=ESCAPE 02668_ Receiving FarCom transmissions... 02668_ Dropped Sml. Storage Unit. 02671_ Dropped Shotgun. 02672_ Lgt. Ion Engine destroyed. 02684_ Flight Unit destroyed. 02692_ Knocked back. Map ----- +----------------------------------------------------+ | ???????????????????????????????????????????????? | | ???????????????????????????????????????????????? | | ???????????????????????????????????????????????? | | ???????????????????????????????????????????????? | | ???????????????????????????????????????????????? | | ???????????????????????????????????????????????? | | ???????????????????????????????????????????????? | | ???????????????????????????????????????????????? | | ???????????????????????????#####???????????????? | | ??????????????????????????## ##??????????????? | | ??????????????????????????# #??????????????? | | ??????????????????????????# #####??????????? | | ??????????????????????????## ##?????????? | | ???????????????????????????## #?????????? | | ????????????????????????????###### #??##?????? | | ?????????????????????????????????# ##?# ##????? | | ?????????????????????????????????# ### #????? | | ??????????????????????????#####?## #????? | | ?????????????????????????## ### #????? | | ????????????????????????## gg ##????? | | ????????????????????????# #?????? | | ????????????????????????# ##?????? | | ????????????????????????## #??????? | | ????????????????????????## ##?????? | | ?????????????????# ##### b g ## ##????? | | ?????????????????# @ g ### #????? | | ?????????????????# ### #?# ##???? | | ?????????????????# ##?### #?## #???? | | ????????????????# ?????# #?## #???? | | ???????????????# ?##### ### ##???? | | ???????????????# ### [ ###????? | | ??????????????# #?# ## ##??????? | | ??????????????# #??# ! ####### ##???????? | | ??????????????## ???# #?????####????????? | | ???????????????## ????# #?????????????????? | | ????????????????### ????## ?????????????????? | | ??????????????????##??????# #????????????????? | | ??????????????????????????#####????????????????? | | ???????????????????????????????????????????????? | | ???????????????????????????????????????????????? | | ???????????????????????????????????????????????? | | ???????????????????????????????????????????????? | | ???????????????????????????????????????????????? | | ???????????????????????????????????????????????? | | ???????????????????????????????????????????????? | | ???????????????????????????????????????????????? | | ???????????????????????????????????????????????? | | ???????????????????????????????????????????????? | | ???????????????????????????????????????????????? | | ???????????????????????????????????????????????? | +----------------------------------------------------+ Best States ------------- Heat Dissipation 25 Energy Generation 10 Energy Capacity 125 Matter Stores 300 Matter Capacity 300 Sight Range 16 Terrain Scan Density 10 Evasion (%) 62 Recoil Reduction 2 Item Schematics ----------------- Lgt. Treads | -10/Materials | Hacked Lrg. Storage Unit | -10/Materials | Hacked Robot Schematics ------------------ None Fabricated ------------ Nothing Alien Tech Used ----------------- None Achievements -------------- None Challenges ------------ None Game ------ Seed MultinovaSwarmSubcomponent Manual? 0 Play Time 00:25:12 Cumulative 22.0 hours Start 2024.04.21 @ 20:55:41 End 2024.04.21 @ 22:12:44 Sessions 1 Manual Loads 0 Difficulty Rogue Special Mode None Game No. 21 Rogue 6 Adventurer 11 Explorer 4 Win Type - Total 1 Types 1/0/0/0/0/0/0/0/0 Lore% 28 Gallery% 29 Achievement% 29 Wizard Run 0 Options --------- Layout 1 ASCII 0 Keyboard 0 Movement Numpad Keybinds 0 Fullscreen 1 Font 20/SmallcapsGlow Map View 54x42 Zoom Use 0% Tactical HUD 1 Map Filters NONE Filters NONE Steam 1 RUN: fc63c3e8-74c9-4609-9619-417d4cef215f